fUSD/lending_fUSD_20241223
["ID","MTS","AMOUNT","RATE_DAILY","PERIOD"]
[346445619,1734979386168,-512.42,0.00017251,2]
[346445620,1734979386191,-765.58,0.00017251,2]
[346445621,1734979386213,-1073.98,0.00017251,2]
[346445622,1734979386237,-500.0,0.00017251,2]
[346445623,1734979386261,-500.0,0.00017251,2]
[346445624,1734979386284,-587.8,0.00017251,2]
[346445625,1734979386308,-637.54,0.00017251,2]
[346445626,1734979386331,-500.0,0.00017251,2]
[346445627,1734979386353,-500.0,0.00017251,2]
[346445628,1734979386376,-842.35,0.00017251,2]
[346445629,1734979386400,-511.85609088,0.00017251,2]
[346445630,1734979386423,-500.0,0.00017251,2]
[346445631,1734979386447,-500.0,0.00017251,2]
[346445632,1734979386471,-500.0,0.00017251,2]
[346445633,1734979386493,-721.69,0.00017251,2]
[346445634,1734979386516,-502.68636578,0.00017251,2]
[346445635,1734979386539,-996.95,0.00017251,2]
[346445636,1734979386563,-709.31,0.00017251,2]
[346445637,1734979386586,-690.48,0.00017251,2]
[346445638,1734979386609,-856.3,0.00017251,2]
[346445639,1734979386633,-726.08,0.00017251,2]
[346445640,1734979386656,-500.0,0.00017251,2]
[346445641,1734979386679,-1896.66,0.00017251,2]
[346445642,1734979386701,-700.74,0.00017251,2]
[346445643,1734979386724,-500.0,0.00017251,2]
[346445644,1734979386747,-500.0,0.00017251,2]
[346445645,1734979386771,-500.0,0.00017251,2]
[346445646,1734979386795,-1380.99,0.00017251,2]
[346445647,1734979386819,-500.0,0.00017251,2]
[346445648,1734979386841,-1042.24,0.00017251,2]
[346445649,1734979386864,-500.0,0.00017251,2]
[346445650,1734979386887,-500.0,0.00017251,2]
[346445651,1734979386909,-500.0,0.00017251,2]
[346445652,1734979386933,-500.0,0.00017251,2]
[346445653,1734979386956,-659.83,0.00017251,2]
[346445654,1734979386980,-859.15,0.00017251,2]
[346445655,1734979387007,-500.0,0.00017251,2]
[346445656,1734979387031,-500.0,0.00017251,2]
[346445657,1734979387055,-500.0,0.00017251,2]
[346445658,1734979387080,-500.0,0.00017251,2]
[346445659,1734979387103,-500.0,0.00017251,2]
[346445660,1734979387125,-562.9,0.00017251,2]
[346445661,1734979387147,-756.75,0.00017251,2]
[346445662,1734979387169,-500.0,0.00017251,2]
[346445663,1734979387192,-500.0,0.00017251,2]
[346445664,1734979387215,-500.0,0.00017251,2]
[346445665,1734979387239,-609.25,0.00017251,2]
[346445666,1734979387263,-664.88,0.00017251,2]
[346445667,1734979387286,-3563.88,0.00017251,2]
[346445668,1734979387310,-500.0,0.00017251,2]
[346445669,1734979387334,-1330.7,0.00017251,2]
[346445670,1734979387358,-1263.69,0.00017251,2]
[346445671,1734979387381,-500.0,0.00017251,2]
[346445672,1734979387406,-888.77,0.00017251,2]
[346445673,1734979387430,-1371.99,0.00017251,2]
[346445674,1734979387453,-500.0,0.00017251,2]
[346445675,1734979387478,-600.39,0.00017251,2]
[346445676,1734979387501,-10166.96,0.00017251,2]
[346445677,1734979387525,-1256.14,0.00017251,2]
[346445678,1734979387548,-500.0,0.00017251,2]
[346445679,1734979387569,-257.91729831,0.00017251,2]
[346445680,1734979387864,-500.0,0.00017251,2]
[346445681,1734979387890,-1240.02,0.00017251,2]
[346445682,1734979387912,-760.46,0.00017251,2]
[346445683,1734979387935,-3527.86,0.00017251,2]
[346445684,1734979387957,-1076.29,0.00017251,2]
[346445685,1734979387980,-500.0,0.00017251,2]
[346445686,1734979388006,-500.0,0.00017251,2]
[346445687,1734979388027,-2525.45,0.00017251,2]
[346445688,1734979388050,-500.0,0.00017251,2]
[346445689,1734979388073,-5755.8,0.00017251,2]
[346445690,1734979388094,-500.0,0.00017251,2]
[346445691,1734979388116,-563.49,0.00017251,2]
[346445692,1734979388137,-500.0,0.00017251,2]
[346445693,1734979388161,-1051.83,0.00017251,2]
[346445694,1734979388184,-4688.94,0.00017251,2]
[346445695,1734979388206,-3770.29,0.00017251,2]
[346445696,1734979388229,-500.0,0.00017251,2]
[346445697,1734979388252,-500.0,0.00017251,2]
[346445698,1734979388275,-8807.6,0.00017251,2]
[346445699,1734979388297,-522.9,0.00017251,2]
[346445700,1734979388321,-1017.98,0.00017251,2]
[346445701,1734979388344,-500.0,0.00017251,2]
[346445702,1734979388369,-1244.05,0.00017251,2]
[346445703,1734979388392,-500.0,0.00017251,2]
[346445704,1734979388415,-3190.13,0.00017251,2]
[346445705,1734979388437,-1242.34,0.00017251,2]
[346445706,1734979388459,-500.0,0.00017251,2]
[346445707,1734979388482,-1969.49,0.00017251,2]
[346445708,1734979388505,-508.58097207,0.00017251,2]
[346445709,1734979388527,-721.42,0.00017251,2]
[346445710,1734979388549,-1110.6,0.00017251,2]
[346445711,1734979388571,-8035.72,0.00017251,2]
[346445712,1734979388593,-625.55,0.00017251,2]
[346445713,1734979388616,-500.0,0.00017251,2]
[346445714,1734979388638,-500.0,0.00017251,2]
[346445715,1734979388663,-7583.8,0.00017251,2]
[346445716,1734979388686,-936.39,0.00017251,2]
[346445717,1734979388708,-4933.96,0.00017251,2]
[346445718,1734979388730,-822.06,0.00017251,2]
[346445719,1734979388753,-500.0,0.00017251,2]
[346445720,1734979388774,-500.0,0.00017251,2]
[346445721,1734979388796,-25163.5,0.00017251,2]
[346445722,1734979388819,-573.56,0.00017251,2]
[346445723,1734979388841,-7086.92,0.00017251,2]
[346445724,1734979388864,-723.8,0.00017251,2]
[346445725,1734979388887,-500.0,0.00017251,2]
[346445726,1734979388909,-1716.21,0.00017251,2]
[346445727,1734979388931,-1357.98,0.00017251,2]
[346445728,1734979388953,-2106.14,0.00017251,2]
[346445729,1734979388977,-580.67,0.00017251,2]
[346445730,1734979389001,-500.0,0.00017251,2]
[346445731,1734979389022,-500.0,0.00017251,2]
[346445732,1734979389045,-3707.65,0.00017251,2]
[346445733,1734979389069,-500.0,0.00017251,2]
[346445734,1734979389090,-504.71359441,0.00017251,2]
[346445735,1734979389111,-500.0,0.00017251,2]
[346445736,1734979389133,-500.0,0.00017251,2]
[346445737,1734979389155,-2211.7,0.00017251,2]
[346445738,1734979389179,-500.0,0.00017251,2]
[346445739,1734979389201,-1962.73,0.00017251,2]
[346445740,1734979389223,-1278.11,0.00017251,2]
[346445741,1734979389248,-500.0,0.00017251,2]
[346445742,1734979389270,-3312.36,0.00017251,2]
[346445743,1734979389291,-500.0,0.00017251,2]
[346445744,1734979389314,-2973.07,0.00017251,2]
[346445745,1734979389339,-8378.91,0.00017251,2]
[346445746,1734979389361,-500.0,0.00017251,2]
[346445747,1734979389382,-630.91,0.00017251,2]
[346445748,1734979389404,-531.07,0.00017251,2]
[346445749,1734979389426,-1595.46,0.00017251,2]
[346445750,1734979389448,-500.0,0.00017251,2]
[346445751,1734979389470,-2470.53,0.00017251,2]
[346445752,1734979389493,-500.0,0.00017251,2]
[346445753,1734979389515,-506.16,0.00017251,2]
[346445754,1734979389539,-500.0,0.00017251,2]
[346445755,1734979389563,-1617.88,0.00017251,2]
[346445756,1734979389585,-4509.73,0.00017251,2]
[346445757,1734979389608,-500.0,0.00017251,2]
[346445758,1734979389630,-500.0,0.00017251,2]
[346445759,1734979389652,-2903.34,0.00017251,2]
[346445760,1734979389674,-786.94,0.00017251,2]
[346445761,1734979389696,-500.0,0.00017251,2]
[346445762,1734979389719,-588.72,0.00017251,2]
[346445763,1734979389743,-500.0,0.00017251,2]
[346445764,1734979389765,-500.0,0.00017251,2]
[346445765,1734979389788,-3246.74,0.00017251,2]
[346445766,1734979389810,-1933.1,0.00017251,2]
[346445767,1734979389832,-711.39,0.00017251,2]
[346445768,1734979389853,-500.0,0.00017251,2]
[346445769,1734979389876,-555.3,0.00017251,2]
[346445770,1734979389898,-576.96,0.00017251,2]
[346445771,1734979389920,-1325.54,0.00017251,2]
[346445772,1734979389942,-500.0,0.00017251,2]
[346445773,1734979389964,-500.0,0.00017251,2]
[346445774,1734979389991,-500.0,0.00017251,2]
[346445775,1734979390015,-500.0,0.00017251,2]
[346445776,1734979390037,-1000.0,0.00017251,2]
[346445777,1734979390059,-2348.88,0.00017251,2]
[346445778,1734979390083,-3268.76,0.00017251,2]
[346445779,1734979390104,-1499.3,0.00017251,2]
[346445780,1734979390126,-500.0,0.00017251,2]
[346445781,1734979390148,-1240.52,0.00017251,2]
[346445782,1734979390171,-2161.97,0.00017251,2]
[346445783,1734979390192,-2745.39,0.00017251,2]
[346445784,1734979390214,-2360.09,0.00017251,2]
[346445785,1734979390238,-608.23,0.00017251,2]
[346445786,1734979390261,-500.0,0.00017251,2]
[346445787,1734979390283,-500.0,0.00017251,2]
[346445788,1734979390305,-500.0,0.00017251,2]
[346445789,1734979390327,-500.0,0.00017251,2]
[346445790,1734979390352,-5740.01,0.00017251,2]
[346445791,1734979390375,-3919.4,0.00017251,2]
[346445792,1734979390398,-500.0,0.00017251,2]
[346445793,1734979390421,-500.0,0.00017251,2]
[346445794,1734979390444,-500.0,0.00017251,2]
[346445795,1734979390467,-883.77,0.00017251,2]
[346445796,1734979390492,-500.0,0.00017251,2]
[346445797,1734979390515,-500.0,0.00017251,2]
[346445798,1734979390540,-500.0,0.00017251,2]
[346445799,1734979390564,-6919.75,0.00017251,2]
[346445800,1734979390587,-510.48935242,0.00017251,2]
[346445801,1734979390609,-500.0,0.00017251,2]
[346445802,1734979390632,-3640.95,0.00017251,2]
[346445803,1734979390654,-572.99690971,0.00017251,2]
[346445804,1734979390676,-500.0,0.00017251,2]
[346445805,1734979390698,-500.0,0.00017251,2]
[346445806,1734979390721,-7254.07,0.00017251,2]
[346445807,1734979390746,-500.0,0.00017251,2]
[346445808,1734979390769,-34197.14,0.00017251,2]
[346445809,1734979390790,-1461.43,0.00017251,2]
[346445810,1734979390812,-1026.74,0.00017251,2]
[346445811,1734979390834,-500.0,0.00017252,2]
[346445812,1734979390855,-500.0,0.00017252,2]
[346445813,1734979390877,-500.0,0.00017252,2]
[346445814,1734979390899,-410.07395699,0.00017252,2]
[346445815,1734979390921,-867.8,0.00017252,2]
[346445816,1734979390942,-584.42,0.00017252,2]
[346445817,1734979390964,-500.0,0.00017252,2]
[346445818,1734979390986,-500.0,0.00017252,2]
[346445819,1734979391011,-424.04517252,0.00017252,2]
[346445820,1734979391033,-500.0,0.00017252,2]
[346445821,1734979391054,-500.0,0.00017252,2]
[346445822,1734979391077,-557.08,0.00017252,2]
[346445823,1734979391097,-500.0,0.00017252,2]
[346445824,1734979391119,-1069.37,0.00017252,2]
[346445825,1734979391139,-500.0,0.00017252,2]
[346445826,1734979391160,-500.0,0.00017252,2]
[346445827,1734979391181,-500.0,0.00017252,2]
[346445828,1734979391204,-674.72,0.00017252,2]
[346445829,1734979391226,-500.0,0.00017252,2]
[346445830,1734979391249,-766.54,0.00017252,2]
[346445831,1734979391270,-500.0,0.00017252,2]
[346445832,1734979391291,-500.0,0.00017252,2]
[346445833,1734979391597,-500.0,0.00017252,2]
[346445834,1734979391619,-1812.71,0.00017252,2]
[346445835,1734979391640,-500.0,0.00017252,2]
[346445836,1734979391661,-500.0,0.00017252,2]
[346445837,1734979391682,-500.0,0.00017252,2]
[346445838,1734979391703,-886.55,0.00017252,2]
[346445839,1734979391725,-1552.33,0.00017252,2]
[346445840,1734979391748,-500.0,0.00017252,2]
[346445841,1734979391770,-500.0,0.00017252,2]
[346445842,1734979391791,-500.0,0.00017252,2]
[346445843,1734979391812,-520.48845944,0.00017252,2]
[346445844,1734979391833,-500.0,0.00017252,2]
[346445845,1734979391854,-500.0,0.00017252,2]
[346445846,1734979391874,-500.0,0.00017252,2]
[346445847,1734979391896,-1224.65,0.00017252,2]
[346445848,1734979391917,-500.0,0.00017252,2]
[346445849,1734979391938,-500.0,0.00017252,2]
[346445850,1734979391959,-500.0,0.00017252,2]
[346445851,1734979391981,-1381.46,0.00017252,2]
[346445852,1734979392006,-1378.16,0.00017252,2]
[346445853,1734979392028,-500.0,0.00017252,2]
[346445854,1734979392051,-1583.49,0.00017252,2]
[346445855,1734979392073,-500.0,0.00017252,2]
[346445856,1734979392096,-500.0,0.00017252,2]
[346445857,1734979392118,-500.0,0.00017252,2]
[346445858,1734979392141,-500.0,0.00017252,2]
[346445859,1734979392162,-500.0,0.00017252,2]
[346445860,1734979392183,-500.0,0.00017252,2]
[346445861,1734979392205,-1246.2,0.00017252,2]
[346445862,1734979392226,-718.17,0.00017252,2]
[346445863,1734979392251,-500.0,0.00017252,2]
[346445864,1734979392272,-500.0,0.00017252,2]
[346445865,1734979392293,-500.0,0.00017252,2]
[346445866,1734979392315,-500.0,0.00017252,2]
[346445867,1734979392336,-500.0,0.00017252,2]
[346445868,1734979392360,-2139.6,0.00017252,2]
[346445869,1734979392382,-500.0,0.00017252,2]
[346445870,1734979392403,-500.0,0.00017252,2]
[346445871,1734979392425,-500.0,0.00017252,2]
[346445872,1734979392446,-625.59,0.00017252,2]
[346445873,1734979392470,-500.0,0.00017252,2]
[346445874,1734979392492,-1076.93,0.00017252,2]
[346445875,1734979392514,-693.82,0.00017252,2]
[346445876,1734979392536,-1574.87,0.00017252,2]
[346445877,1734979392557,-500.0,0.00017252,2]
[346445878,1734979392579,-482.98,0.00017252,2]
[346445879,1734979392600,-500.0,0.00017252,2]
[346445880,1734979392622,-2176.37,0.00017252,2]
[346445881,1734979392643,-500.0,0.00017252,2]
[346445882,1734979392663,-500.0,0.00017252,2]
[346445883,1734979392686,-500.0,0.00017252,2]
[346445884,1734979392708,-979.79,0.00017252,2]
[346445885,1734979392731,-621.2,0.00017252,2]
[346445886,1734979392753,-500.0,0.00017252,2]
[346445887,1734979392774,-500.0,0.00017252,2]
[346445888,1734979392796,-500.0,0.00017252,2]
[346445889,1734979392817,-505.41,0.00017252,2]
[346445890,1734979392839,-500.0,0.00017252,2]
[346445891,1734979392861,-500.0,0.00017252,2]
[346445892,1734979392883,-500.0,0.00017252,2]
[346445893,1734979392905,-500.0,0.00017252,2]
[346445894,1734979392927,-1092.51,0.00017252,2]
[346445895,1734979392949,-543.48,0.00017252,2]
[346445896,1734979392970,-468.38737259,0.00017252,2]
[346445897,1734979392994,-500.0,0.00017252,2]
[346445898,1734979393016,-500.0,0.00017252,2]
[346445899,1734979393038,-711.5,0.00017252,2]
[346445900,1734979393059,-500.0,0.00017252,2]
[346445901,1734979393081,-500.0,0.00017252,2]
[346445902,1734979393103,-1342.52,0.00017252,2]
[346445903,1734979393123,-500.0,0.00017252,2]
[346445904,1734979393145,-500.0,0.00017252,2]
[346445905,1734979393167,-642.41,0.00017252,2]
[346445906,1734979393188,-1669.44,0.00017252,2]
[346445907,1734979393210,-500.0,0.00017252,2]
[346445908,1734979393231,-500.0,0.00017252,2]
[346445909,1734979393253,-1238.92,0.00017252,2]
[346445910,1734979393275,-855.81,0.00017252,2]
[346445911,1734979393297,-500.0,0.00017252,2]
[346445912,1734979393319,-500.0,0.00017252,2]
[346445913,1734979393342,-500.0,0.00017252,2]
[346445914,1734979393365,-500.0,0.00017252,2]
[346445915,1734979393387,-500.0,0.00017252,2]
[346445916,1734979393409,-1107.65,0.00017252,2]
[346445917,1734979393430,-500.0,0.00017252,2]
[346445918,1734979393451,-500.0,0.00017252,2]
[346445919,1734979393473,-500.0,0.00017252,2]
[346445920,1734979393496,-2188.83,0.00017252,2]
[346445921,1734979393519,-500.0,0.00017252,2]
[346445922,1734979393540,-500.0,0.00017252,2]
[346445923,1734979393563,-1292.23,0.00017252,2]
[346445924,1734979393585,-500.0,0.00017252,2]
[346445925,1734979393607,-502.19167344,0.00017252,2]
[346445926,1734979393629,-1107.29,0.00017252,2]
[346445927,1734979393651,-500.0,0.00017252,2]
[346445928,1734979393673,-500.0,0.00017252,2]
[346445929,1734979393695,-501.50529978,0.00017252,2]
[346445930,1734979393716,-513.48920377,0.00017252,2]
[346445931,1734979393738,-1237.68,0.00017252,2]
[346445932,1734979393760,-500.0,0.00017252,2]
[346445933,1734979393783,-500.0,0.00017252,2]
[346445934,1734979393806,-500.0,0.00017252,2]
[346445935,1734979393829,-1121.91,0.00017252,2]
[346445936,1734979393851,-500.0,0.00017252,2]
[346445937,1734979393873,-500.0,0.00017252,2]
[346445938,1734979393895,-500.0,0.00017252,2]
[346445939,1734979393918,-1035.95,0.00017252,2]
[346445940,1734979393946,-500.0,0.00017252,2]
[346445941,1734979393970,-500.0,0.00017252,2]
[346445942,1734979393997,-2435.37,0.00017252,2]
[346445943,1734979394021,-1117.92,0.00017252,2]
[346445944,1734979394044,-500.0,0.00017252,2]
[346445945,1734979394067,-1206.55,0.00017252,2]
[346445946,1734979394090,-500.0,0.00017252,2]
[346445947,1734979394111,-624.39,0.00017252,2]
[346445948,1734979394134,-817.79,0.00017252,2]
[346445949,1734979394156,-500.0,0.00017252,2]
[346445950,1734979394178,-1106.82,0.00017252,2]
[346445951,1734979394200,-500.0,0.00017252,2]
[346445952,1734979394223,-1259.14,0.00017252,2]
[346445953,1734979394246,-500.0,0.00017252,2]
[346445954,1734979394269,-1659.59,0.00017252,2]
[346445955,1734979394291,-500.0,0.00017252,2]
[346445956,1734979394313,-502.8198022,0.00017252,2]
[346445957,1734979394335,-1721.71,0.00017252,2]
[346445958,1734979394358,-500.0,0.00017252,2]
[346445959,1734979394380,-502.19093029,0.00017252,2]
[346445960,1734979394402,-500.0,0.00017252,2]
[346445961,1734979394424,-500.0,0.00017252,2]
[346445962,1734979394446,-500.0,0.00017252,2]
[346445963,1734979394469,-1000.22,0.00017252,2]
[346445964,1734979394492,-500.0,0.00017252,2]
[346445965,1734979394514,-500.0,0.00017252,2]
[346445966,1734979394535,-500.0,0.00017252,2]
[346445967,1734979394559,-1033.18,0.00017252,2]
[346445968,1734979394581,-631.32,0.00017252,2]
[346445969,1734979394604,-583.17,0.00017252,2]
[346445970,1734979394625,-500.0,0.00017252,2]
[346445971,1734979394646,-500.0,0.00017252,2]
[346445972,1734979394667,-905.86,0.00017252,2]
[346445973,1734979394690,-1020.23,0.00017252,2]
[346445974,1734979394712,-500.0,0.00017252,2]
[346445975,1734979394735,-500.0,0.00017252,2]
[346445976,1734979394758,-500.0,0.00017252,2]
[346445977,1734979394780,-500.0,0.00017252,2]
[346445978,1734979394802,-910.63,0.00017252,2]
[346445979,1734979394825,-500.0,0.00017252,2]
[346445980,1734979394847,-500.0,0.00017252,2]
[346445981,1734979394870,-500.0,0.00017252,2]
[346445982,1734979394892,-500.0,0.00017252,2]
[346445983,1734979394914,-500.0,0.00017252,2]
[346445984,1734979394938,-500.0,0.00017252,2]
[346445985,1734979394960,-2009.04,0.00017252,2]
[346445986,1734979395216,-500.0,0.00017252,2]
[346445987,1734979395243,-1878.82,0.00017252,2]
[346445988,1734979395265,-791.2,0.00017252,2]
[346445989,1734979395286,-1365.88,0.00017252,2]
[346445990,1734979395307,-500.0,0.00017252,2]
[346445991,1734979395329,-500.0,0.00017252,2]
[346445992,1734979395352,-1821.33,0.00017252,2]
[346445993,1734979395374,-500.0,0.00017252,2]
[346445994,1734979395397,-1025.8,0.00017252,2]
[346445995,1734979395419,-500.0,0.00017252,2]
[346445996,1734979395441,-801.79,0.00017252,2]
[346445997,1734979395465,-500.0,0.00017252,2]
[346445998,1734979395493,-1264.6,0.00017252,2]
[346445999,1734979395516,-314.52264293,0.00017252,2]
[346446000,1734979395539,-1982.63,0.00017252,2]
[346446001,1734979395562,-680.06,0.00017252,2]
[346446002,1734979395584,-620.17,0.00017252,2]
[346446003,1734979395607,-500.0,0.00017252,2]
[346446004,1734979395629,-1376.71,0.00017252,2]
[346446005,1734979395651,-500.0,0.00017252,2]
[346446006,1734979395673,-1539.53,0.00017252,2]
[346446007,1734979395695,-691.37,0.00017252,2]
[346446008,1734979395717,-500.0,0.00017252,2]
[346446009,1734979395742,-500.0,0.00017252,2]
[346446010,1734979395764,-500.0,0.00017252,2]
[346446011,1734979395786,-500.0,0.00017252,2]
[346446012,1734979395809,-643.02,0.00017252,2]
[346446013,1734979395832,-1365.23,0.00017252,2]
[346446014,1734979395854,-500.0,0.00017252,2]
[346446015,1734979395876,-500.0,0.00017252,2]
[346446016,1734979395900,-1556.07,0.00017252,2]
[346446017,1734979395923,-586.59,0.00017252,2]
[346446018,1734979395945,-500.0,0.00017252,2]
[346446019,1734979395969,-1781.68,0.00017252,2]
[346446020,1734979395995,-657.33,0.00017252,2]
[346446021,1734979396020,-1034.69,0.00017252,2]
[346446022,1734979396043,-500.0,0.00017252,2]
[346446023,1734979396067,-647.34,0.00017252,2]
[346446024,1734979396094,-855.6,0.00017252,2]
[346446025,1734979396117,-500.0,0.00017252,2]
[346446026,1734979396140,-1419.82,0.00017252,2]
[346446027,1734979396162,-590.74,0.00017252,2]
[346446028,1734979396184,-500.0,0.00017252,2]
[346446029,1734979396206,-500.0,0.00017252,2]
[346446030,1734979396228,-1853.8,0.00017252,2]
[346446031,1734979396252,-500.0,0.00017252,2]
[346446032,1734979396274,-500.0,0.00017252,2]
[346446033,1734979396297,-500.0,0.00017252,2]
[346446034,1734979396321,-581.59,0.00017252,2]
[346446035,1734979396345,-637.56,0.00017252,2]
[346446036,1734979396367,-1360.21,0.00017252,2]
[346446037,1734979396391,-1229.22,0.00017252,2]
[346446038,1734979396413,-950.96,0.00017252,2]
[346446039,1734979396435,-1119.5,0.00017252,2]
[346446040,1734979396458,-1210.13,0.00017252,2]
[346446041,1734979396479,-625.00417289,0.00017252,2]
[346446042,1734979396503,-500.0,0.00017252,2]
[346446043,1734979396524,-500.0,0.00017252,2]
[346446044,1734979396547,-1956.75,0.00017252,2]
[346446045,1734979396568,-500.0,0.00017252,2]
[346446046,1734979396590,-500.0,0.00017252,2]
[346446047,1734979396611,-953.92,0.00017252,2]
[346446048,1734979396633,-500.0,0.00017252,2]
[346446049,1734979396655,-500.0,0.00017252,2]
[346446050,1734979396676,-2408.41,0.00017252,2]
[346446051,1734979396698,-803.94,0.00017252,2]
[346446052,1734979396720,-500.0,0.00017252,2]
[346446053,1734979396743,-847.29,0.00017252,2]
[346446054,1734979396766,-1644.7,0.00017252,2]
[346446055,1734979396788,-500.0,0.00017252,2]
[346446056,1734979396810,-526.57,0.00017252,2]
[346446057,1734979396832,-508.99,0.00017252,2]
[346446058,1734979396854,-1371.07,0.00017253,2]
[346446059,1734979396876,-1663.37,0.00017253,2]
[346446060,1734979396898,-837.94,0.00017253,2]
[346446061,1734979396921,-1388.77,0.00017253,2]
[346446062,1734979396943,-1369.24,0.00017253,2]
[346446063,1734979396966,-2471.64,0.00017253,2]
[346446064,1734979396989,-1111.01,0.00017253,2]
[346446065,1734979397016,-2171.0,0.00017253,2]
[346446066,1734979397039,-2339.58,0.00017253,2]
[346446067,1734979397064,-3277.1,0.00017253,2]
[346446068,1734979397087,-930.67,0.00017253,2]
[346446069,1734979397111,-500.0,0.00017253,2]
[346446070,1734979397133,-645.69,0.00017253,2]
[346446071,1734979397156,-500.0,0.00017253,2]
[346446072,1734979397179,-2270.32,0.00017253,2]
[346446073,1734979397205,-1564.54,0.00017253,2]
[346446074,1734979397230,-1228.22,0.00017253,2]
[346446075,1734979397257,-500.0,0.00017253,2]
[346446076,1734979397280,-416.78369554,0.00017253,2]
[346446077,1734979397303,-500.0,0.00017253,2]
[346446078,1734979397331,-500.0,0.00017253,2]
[346446079,1734979397354,-500.0,0.00017253,2]
[346446080,1734979397377,-1600.43,0.00017253,2]
[346446081,1734979397399,-506.82,0.00017253,2]
[346446082,1734979397423,-1220.52,0.00017253,2]
[346446083,1734979397444,-366.8919147,0.00017253,2]
[346446084,1734979397467,-500.0,0.00017253,2]
[346446085,1734979397490,-2192.62,0.00017253,2]
[346446086,1734979397513,-1487.49,0.00017253,2]
[346446087,1734979397535,-1154.18,0.00017253,2]
[346446088,1734979397558,-1508.73,0.00017253,2]
[346446089,1734979397580,-622.07,0.00017253,2]
[346446090,1734979397603,-2309.93,0.00017253,2]
[346446091,1734979397626,-500.0,0.00017253,2]
[346446092,1734979397648,-500.0,0.00017253,2]
[346446093,1734979397670,-1656.12,0.00017253,2]
[346446094,1734979397693,-582.32,0.00017253,2]
[346446095,1734979397716,-1070.94,0.00017253,2]
[346446096,1734979397740,-616.56,0.00017253,2]
[346446097,1734979397762,-1179.2,0.00017253,2]
[346446098,1734979397785,-500.0,0.00017253,2]
[346446099,1734979397808,-1895.38,0.00017253,2]
[346446100,1734979397832,-3417.45,0.00017253,2]
[346446101,1734979397855,-1747.32,0.00017253,2]
[346446102,1734979397880,-1234.71,0.00017253,2]
[346446103,1734979397904,-1623.44,0.00017253,2]
[346446104,1734979397928,-1290.46,0.00017253,2]
[346446105,1734979397951,-500.0,0.00017253,2]
[346446106,1734979397974,-2929.38,0.00017253,2]
[346446107,1734979398002,-1956.04,0.00017253,2]
[346446108,1734979398025,-2832.21,0.00017253,2]
[346446109,1734979398050,-1343.41,0.00017253,2]
[346446110,1734979398075,-2681.82,0.00017253,2]
[346446111,1734979398100,-1691.1,0.00017253,2]
[346446112,1734979398124,-510.48,0.00017253,2]
[346446113,1734979398148,-1607.26,0.00017253,2]
[346446114,1734979398174,-936.58,0.00017253,2]
[346446115,1734979398198,-5000.0,0.00017254,2]
[346446116,1734979398221,-559.49,0.00017254,2]
[346446117,1734979398248,-500.0,0.00017254,2]
[346446118,1734979398271,-500.0,0.00017254,2]